Cogmind - Beta 9.3 @@@ ROGUE MODE // 2020.01.07 @ 17:20:11 Player: derk Result: Destroyed by as-88962 with Assembled Blade Performance ------------- Evolutions (0) 0 Regions Visited (3) 600 Robots Destroyed (19) 95 Value Destroyed (199) 199 Prototype IDs (4) 80 Alien Tech Used (0) 0 Bonus (-86) -86 TOTAL SCORE: 888 Bonus ------- Friendly Fire -86 Cogmind --------- Core Integrity 0/250 Matter 280/300 Energy 100/100 System Corruption 8% Temperature Cool (0) Movement Core (550) Ox10 Location -10/Exiles Parts ------- > --- POWER (1) -------- (None) > --- PROPULSION (2) --- (None) > --- UTILITY (2) ------ Large Storage Unit Large Storage Unit > --- WEAPON (2) ------- (None) > --- INVENTORY (16) --- Light Treads Large Storage Unit Large Matter Pod (140) Signal Interpreter Transport Network Coupler EMP Blaster Shock Trap Shock Trap Shock Trap Peak State ------------ > --- POWER ------------ Light Nuclear Core > --- PROPULSION ------- Wheel Wheel > --- UTILITY ---------- Large Storage Unit Large Storage Unit > --- WEAPON ----------- Particle Gun EMP Blaster > --- INVENTORY -------- Light Ion Engine Light Treads Light Treads Light Treads Wheel Compact Wheel Large Storage Unit Large Matter Pod Transport Network Coupler EM Shotgun EM Shotgun EM Shotgun Assault Rifle Assault Rifle EMP Blaster Mining Claw [Rating: 13] Favorites ----------- Power Light Nuclear Core Engine Ion Engine Power Core Light Nuclear Core Propulsion Wheel Treads Light Treads Wheel Wheel Utility Large Storage Unit Storage Large Storage Unit Processor Transport Network Coupler Weapon Assault Rifle Energy Gun Particle Gun Ballistic Gun Assault Rifle Launcher EMP Blaster Slashing Weapon Mining Claw Build | -11 -10 -10 -10 ------- Run | Scr Mat Min Exi Slots Evolved . | . . . . Power . | . . . . Propulsion . | . . . . Utility . | . . . . Weapon . | . . . . Parts Attached 28 | 6 6 10 6 Power 4 | 1 1 1 1 Engine 3 | 1 . 1 1 Core 1 | . 1 . . Reactor . | . . . . Propulsion 7 | 2 . 3 2 Treads 3 | . . 1 2 Leg . | . . . . Wheel 4 | 2 . 2 . Hover . | . . . . Flight . | . . . . Utility 4 | 1 3 . . Device . | . . . . Storage 3 | 1 2 . . Processor 1 | . 1 . . Hackware . | . . . . Protection . | . . . . Artifact . | . . . . Weapon 13 | 2 2 6 3 Energy Gun 5 | 1 1 3 . Energy Cannon . | . . . . Ballistic Gun 3 | 1 . 1 1 Ballistic Cannon . | . . . . Launcher 3 | . 1 1 1 Special Weapon . | . . . . Impact Weapon . | . . . . Slashing Weapon 2 | . . 1 1 Piercing Weapon . | . . . . Special Melee Weapon . | . . . . Unidentified Prototypes . | . . . . Parts Lost 17 | . . 7 10 Power 3 | . . 1 2 Propulsion 6 | . . 2 4 Utility . | . . . . Weapon 8 | . . 4 4 Highest Loss Streak 10 | . . 6 10 Average Slot Usage (%) 97 | . 98 93 95 Engine 6 | . 5 7 12 Core 6 | . 8 4 . Wheel 26 | . 28 24 25 Storage 23 | . 21 28 28 Processor 3 | . 5 . . Energy Gun 10 | . 14 6 . Ballistic Gun 11 | . 13 7 11 Launcher 3 | . . 8 9 Naked Turns . | . . . . Heaviest Build 44 | 12 44 44 41 Greatest Support 26 | 20 20 26 26 Greatest Overweight (x) 10 | 1 2 2 10 Average Overweight (x) 1 | . 1 1 1 Largest Inventory Capacity 16 | 6 16 16 16 Average Capacity 13 | 5 12 16 16 Most Carried 16 | 4 16 16 14 Average Carried 11 | 3 10 13 13 Final Capacity 16 | 6 16 16 16 Final Carried 16 | 4 16 14 9 Class Distribution -------------------- 100% | Mutant Dominant Class ---------------- Mutant | -10/Materials Mutant | -10/Mines Mutant | -10/Exiles Resources | -11 -10 -10 -10 ----------- Run | Scr Mat Min Exi Matter Collected 605 | 275 196 134 . Remotely . | . . . . Salvage Created 457 | 76 226 155 . Parts 28 | . 20 8 . Haulers Intercepted 1 | . 1 . . Recyclers Shooed . | . . . . Parts Field Recycled . | . . . . Retrieved Matter . | . . . . Parts Self-Destructed . | . . . . Prevented . | . . . . Kills | -11 -10 -10 -10 ------- Run | Scr Mat Min Exi Combat Hostiles Destroyed 17 | . 8 9 . Melee 1 | . . 1 . Guns 11 | . 7 4 . AOE 5 | . 1 4 . Classes Destroyed 5 | 1 3 1 . Hauler 1 | . 1 . . Recycler 1 | 1 . . . Swarmer 11 | . 6 5 . Grunt 2 | . 2 . . Assembled 4 | . . 4 . Best Kill Streak 6 | 1 3 6 . Combat Bots Only 6 | . 3 6 . Max Kills in Single Turn 2 | 1 1 2 . Gunslinging 1 | . . 1 . Exploded 2 | . 1 2 . Melee 1 | . . 1 . Uniques/NPCs Destroyed . | . . . . Combat | -11 -10 -10 -10 -------- Run | Scr Mat Min Exi Damage Taken 1745 | . 245 482 1018 Core 272 | . 28 41 203 Absorbed by Shields . | . . . . Core Remaining (%) 100 | 100 . . . Volleys Fired 40 | 5 23 12 . Largest 2 | 2 2 2 . Hottest 98 | 60 98 90 . Shots Fired 70 | 10 44 16 . Gun 64 | 10 41 13 . Cannon . | . . . . Launcher 6 | . 3 3 . Special . | . . . . Kinetic 23 | 5 18 . . Thermal 28 | 5 23 . . Explosive . | . . . . Electromagnetic 19 | . 3 16 . Robot Hit Streak 6 | 6 6 6 . Robot Miss Streak 3 | 1 3 2 . Penetration Max . | . . . . Secondary Targets 1 | . . 1 . Max Gunslinging Chain 1 | . . 1 . Shots Hit Robots 48 | 7 28 12 1 Core Hits 31 | 2 12 17 . Critical Hits 1 | . 1 . . Critical Kills 1 | . 1 . . Critical Parts Destroyed . | . . . . Melee Attacks 4 | . . 3 1 Impact . | . . . . Slashing 4 | . . 3 1 Piercing . | . . . . Sneak Attacks . | . . . . Combat Hostiles . | . . . . Follow-up Attacks . | . . . . Damage Inflicted 812 | 74 367 285 86 Guns 501 | 74 317 110 . Cannons . | . . . . Explosions 161 | . 50 111 . Melee 142 | . . 56 86 Ramming 8 | . . 8 . Kinetic 137 | 22 115 . . Thermal 254 | 52 202 . . Explosive . | . . . . Electromagnetic 271 | . 50 221 . Impact . | . . . . Slashing 142 | . . 56 86 Piercing . | . . . . Highest Corruption 8 | . . 8 8 Average Corruption 7 | . . 7 8 Corruption Purged . | . . . . Effects 3 | . . 2 1 Message Errors 2 | . . 2 . Data Loss (minor) 1 | . . . 1 Overload Shots . | . . . . Overflow Damage 41 | . . . 41 Projectiles . | . . . . Explosions . | . . . . Melee 41 | . . . 41 Knockbacks . | . . . . Impact . | . . . . Kinetic . | . . . . Secondary . | . . . . Self-Inflicted Damage 38 | . 16 22 . Shots 3 | . 1 2 . Rammed 1 | . . 1 . Targets Rammed 1 | . . 1 . Kicked . | . . . . Crushed . | . . . . Highest Temperature 182 | . 182 128 . Average Temperature 62 | . 62 62 . Received Heat Transfer 89 | . 69 20 . Siege Activations . | . . . . Robots Corrupted . | . . . . Combat Hostiles . | . . . . Parts Fried 1 | . . 1 . Impact Corruptions . | . . . . Robots Melted . | . . . . Combat Hostiles . | . . . . Parts Melted 1 | . 1 . . Heat Transferred 584 | 125 459 . . Parts Sabotaged . | . . . . Parts Stolen . | . . . . Parts Stripped . | . . . . Power Chain Reactions . | . . . . Missiles Intercepted . | . . . . Alert | -11 -10 -10 -10 ------- Run | Scr Mat Min Exi Peak Influence 134 | 5 90 134 . Average Influence 40 | 1 32 83 . Maximum Alert Level . | . . . . Low Security (%) 100 | 100 100 100 . Level 1 . | . . . . Level 2 . | . . . . Level 3 . | . . . . Level 4 . | . . . . Level 5 . | . . . . High Security . | . . . . Max Security . | . . . . Squads Dispatched . | . . . . Investigation . | . . . . Extermination . | . . . . Reinforcement . | . . . . Assault . | . . . . Garrison . | . . . . Intercept . | . . . . Construction Impeded . | . . . . Haulers Reinforced . | . . . . Stealth | -11 -10 -10 -10 --------- Run | Scr Mat Min Exi Distress Signals 2 | . . 2 . Communications Jammed . | . . . . Distress Signals . | . . . . Times Spotted 40 | . 11 22 7 Peak Tracking Total 19 | . 4 19 10 Tactical Retreats 4 | . . 3 1 Traps | -11 -10 -10 -10 ------- Run | Scr Mat Min Exi Traps Triggered . | . . . . Indirectly . | . . . . Trap Hack Attempts . | . . . . Triggered . | . . . . Disarmed . | . . . . Reprogrammed . | . . . . Reused . | . . . . Traps Extracted . | . . . . Installed . | . . . . Triggered . | . . . . Machines | -11 -10 -10 -10 ---------- Run | Scr Mat Min Exi Machines Disabled 1 | . 1 . . Max in Single Turn 1 | . 1 . . Machines Sabotaged . | . . . . Garrisons Compromised . | . . . . Overloaded Fab Kills . | . . . . Fab Network Shutdowns . | . . . . Hacking | -11 -10 -10 -10 --------- Run | Scr Mat Min Exi Machines Accessed 8 | . 8 . . Terminals 7 | . 7 . . Fabricators . | . . . . Repair Stations . | . . . . Recycling Units 1 | . 1 . . Scanalyzers . | . . . . Garrison Access . | . . . . Total Hacks 23 | . 23 . . Successful 13 | . 13 . . Failed 10 | . 10 . . Catastrophic 2 | . 2 . . Database Lockouts . | . . . . Manual 5 | . 5 . . Terminals 21 | . 21 . . Fabricators . | . . . . Repair Stations . | . . . . Recycling Units 2 | . 2 . . Scanalyzers . | . . . . Garrison Access . | . . . . Terminal Hacks 11 | . 11 . . Prototype ID Bank 3 | . 3 . . Branch Access Points 1 | . 1 . . Terminal Index 1 | . 1 . . Unreport Threat 1 | . 1 . . Locate Traps 1 | . 1 . . Transport Status 1 | . 1 . . Hauler Manifests 1 | . 1 . . Registered Components 1 | . 1 . . Zone Layout 1 | . 1 . . Fabricator Hacks . | . . . . Repair Station Hacks . | . . . . Recycling Unit Hacks 2 | . 2 . . Report Inventory 1 | . 1 . . Retrieve Components 1 | . 1 . . Scanalyzer . | . . . . Garrison Access Hacks . | . . . . Unauthorized Hacks . | . . . . Terminals . | . . . . Fabricators . | . . . . Repair Stations . | . . . . Recycling Units . | . . . . Scanalyzers . | . . . . Garrison Access . | . . . . Data Cores Recovered . | . . . . Used . | . . . . Hacking Detections 6 | . 6 . . Full Trace Events 1 | . 1 . . Feedback Events . | . . . . Feedback Blocked . | . . . . Robot Schematics Acquired . | . . . . Robots Built . | . . . . Matter . | . . . . Time . | . . . . Total Robot Build Rating . | . . . . Part Schematics Acquired . | . . . . Parts Built . | . . . . Matter . | . . . . Time . | . . . . Total Part Build Rating . | . . . . Parts Repaired . | . . . . Time . | . . . . Parts Recycled . | . . . . Recycled Matter . | . . . . Retrieved Matter . | . . . . Retrieved Components 3 | . 3 . . Parts Scanalyzed . | . . . . Part Schematics Acquired . | . . . . Parts Damaged . | . . . . Bothacking | -11 -10 -10 -10 ------------ Run | Scr Mat Min Exi Used RIF Installer . | . . . . Robots Hacked . | . . . . Non-combat . | . . . . Combat . | . . . . Robot Hacks Applied . | . . . . Relay Couplers Released . | . . . . Robots Rewired . | . . . . Allies Hacked . | . . . . Hacks Repelled . | . . . . Allies | -11 -10 -10 -10 -------- Run | Scr Mat Min Exi Total Allies . | . . . . Largest Group . | . . . . Highest-Rated Group . | . . . . Highest-Rated Ally . | . . . . Total Orders . | . . . . Ally Attacks . | . . . . Total Damage . | . . . . Kills . | . . . . Allies Corrupted . | . . . . Allies Melted . | . . . . Intel | -11 -10 -10 -10 ------- Run | Scr Mat Min Exi Robot Analysis Total . | . . . . Derelict Logs Recovered . | . . . . Drone Launches . | . . . . Drone Recoveries . | . . . . Exploration | -11 -10 -10 -10 ------------- Run | Scr Mat Min Exi Turns Passed 1025 | 79 637 203 106 Spaces Moved 860 | 65 561 141 93 Core 7 | 6 . . 1 Treads 9 | . . 9 . Legs . | . . . . Wheels 844 | 59 561 132 92 Hover . | . . . . Flight . | . . . . Fastest Speed 50 | 50 80 100 100 Average Speed 95 | 78 93 105 107 Slowest Speed 550 | 100 100 180 550 Overloaded Moves . | . . . . Propulsion Burnouts . | . . . . Robots Hopped . | . . . . Cave-ins Triggered . | . . . . Exploration Rate (%) 37 | 4 76 37 34 Regions Visited 3 Branch Regions 2 Pre-discovered Areas . | . . . . Known Exits Taken 1 | . 1 . . Unknown Exits Taken 2 | 1 . 1 . Scrap Searched 1 | . . 1 . Spaces Dug . | . . . . Terrain Destroyed . | . . . . Melee . | . . . . Projectile . | . . . . AOE . | . . . . Actions | -11 -10 -10 -10 --------- Run | Scr Mat Min Exi Total 982 | 79 632 171 100 Wait 14 | . 14 . . Move 857 | 64 560 140 93 Hop . | . . . . Pick Up 28 | 4 19 5 . Fast Attach 9 | 6 3 . . Attach 13 | . 1 7 5 Detach . | . . . . Swap 6 | . 2 3 1 Drop 10 | . 10 . . Fire 40 | 5 23 12 . Melee 4 | . . 3 1 Ram . | . . . . Kick . | . . . . Crush 1 | . . 1 . Escape Stasis . | . . . . Rewire . | . . . . Trap . | . . . . Miscellaneous . | . . . . Route ------- -11/Scrapyard -10/Materials (discovered 3 exits: [*Mat x2] / *Min) -10/Mines -10/Exiles (discovered 1 exit: [*Min]) History --------- Turn | Location | Event 16 | -11/Scrapyard | Discovered new exit (range 15) 80 | -11/Scrapyard | Entered Materials 310 | -10/Materials | Build established: Mutant 440 | -10/Materials | Discovered new exit (range 7) 480 | -10/Materials | Discovered new exit (range 8) 493 | -10/Materials | Identified exit to Mines 541 | -10/Materials | Discovered new exit (range 16) 717 | -10/Materials | Entered Mines 756 | -10/Mines | Assembled infested the area 834 | -10/Mines | Lost 6 parts (1p2n3w) 888 | -10/Mines | Found a hidden stash of uninstalled traps 916 | -10/Mines | Deemed a non-threat by the Exiles lab entrance 916 | -10/Mines | Discovered new exit (range 5) 920 | -10/Mines | Entered Exiles 936 | -10/Exiles | Discovered new exit (range 15) 955 | -10/Exiles | Met 8R-AWN 969 | -10/Exiles | Met EX-HEX 988 | -10/Exiles | Attacked by the Exiles 1004 | -10/Exiles | Core integrity fell below 50% 1010 | -10/Exiles | Core integrity fell below 20% 1026 | -10/Exiles | Destroyed by as-88962 with Assembled Blade Last Messages --------------- 01000_ Lgt. Ion Engine destroyed. 01000_ HV Slug penetrates as-88962. 01003_ HV Slug penetrates Wall. 01003_ HV Slug penetrates as-25729. 01003_ Penetrated by HV Slug. 01006_ Assault Rifle destroyed. 01007_ Penetrated by HV Slug. 01007_ Critical hit. 01007_ Lgt. Treads destroyed. 01007_ Penetrated by HV Slug. 01011_ Knocked back. 01012_ Mining Claw destroyed. 01019_ Assault Rifle destroyed. 01019_ Lgt. Ion Engine destroyed. 01020_ Machine disabled. 01021_ EMP Blaster destroyed. 01022_ Machine disabled. 01024_ Wheel destroyed. 01024_ Lgt. Treads destroyed. 01024_ Knocked back. Map ----- +----------------------------------------------------+ | ?????????????????????????????????????????????????? | | ?????????????????????????????????????????????????? | | ?????????????????????????????????????????????????? | | ?????????????????????????????????????????????????? | | ?????????????????????????????????????????????????? | | ?????????????????????????????????????????????????? | | ?????????????????????????????????????????????????? | | ?????????????????????????????????????????????????? | | ?????????????????????????????????????????????????? | | ?????????????????????????????????????????????????? | | ?????????????????????????????????????????????????? | | ?????????????????????????????????????????????????? | | ?????????????????????????????????? ????????????? | | ???????????????????????????????? ???????????? | | ???????????????????????????????? ???????????? | | ????????????????????????????????" ???????????? | | ???????????????????????????????#" ??????????? | | ???????????????????????????????#" ???????????? | | ??????????????????????????????##" #???????????? | | ?????????????????# ??????????##"" #???????????? | | ???????????????#?# ##??######"" #???????????? | | ???????????#####X# #"###""""""" ##??????????? | | ?????????? """""" " "" ###??####### | | ?????????? "" "" " ;####"""""" | | ????????? " " " """ | | ????????? @a "" | | ????????? a " | | ????????? a | | ????????? a | | ??????????" | | ??????????""" """""" aaa | | ??????????? ######"" | | ??????????? ""##????#####""" | | ???????????" """##?????????##""" | | ???????????? """##???????????#"""" | | ???????????? ""?????????????#"" | | ????????????? #??????????????""" | | ????????????? ???????????????? | | ??????????????? ????????????????? | | ????????????????? ????????????????? | | ???????????????????? ????????????????? | | ?????????????????????????????????????? " | | ???????????????????????????????????????? """ | | ?????????????????????????????????????????? " ""#" | | ???????????????????????????????????????????" "??## | | ?????????????????????????????????????????????????# | | ?????????????????????????????????????????????????? | | ?????????????????????????????????????????????????? | | ?????????????????????????????????????????????????? | | ?????????????????????????????????????????????????? | +----------------------------------------------------+ Best States ------------- Heat Dissipation 25 Energy Generation 14 Energy Capacity 250 Matter Stores 300 Matter Capacity 300 Sight Range 16 Terrain Scan Density 10 Evasion (%) 44 Recoil Reduction 1 Item Schematics ----------------- None Robot Schematics ------------------ None Fabricated ------------ Nothing Alien Tech Used ----------------- None Achievements -------------- None Challenges ------------ None Game ------ Seed GuidedManeuveringAnalyzer Manual? 0 Play Time 00:20:25 Cumulative 17.2 hours Start 2020.01.07 @ 17:00:55 End 2020.01.07 @ 17:20:11 Sessions 1 Manual Loads 0 Difficulty Rogue Special Mode None Game No. 8 Rogue 8 Adventurer 0 Explorer 0 Win Type - Total 0 Types 0/0/0/0/0/0/0 Lore% 16 Gallery% 27 Achievement% 24 Wizard Run 0 Options --------- ASCII 0 Keyboard 0 Movement Numpad Keybinds 0 Fullscreen 1 Font 18/SmallcapsGlow Map View 76x50 Tactical HUD 1 Map Filters NONE Filters NONE Steam 1 RUN: a713e5a8-e34e-4b95-b814-db85e3b33cf8